[Event "December 5 Late 2023"]
[Site "https://www.chess.com"]
[Date "2023.12.05"]
[Round "4"]
[White "Krzyzanowski, Marcin"]
[Black "Grutter, Tim"]
[Result "1-0"]
[Board "55"]
[TimeControl "180+1"]
[WhiteFideId "1132199"]
[BlackFideId "1057472"]
[WhiteElo "2720"]
[BlackElo "2527"]
[WhiteTeam "POL"]
[BlackTeam "NED"]
[WhiteClock "0:00:04"]
[BlackClock "0:00:01"]

1. e4 {[%clk 0:03:00]}  c6 {[%clk 0:02:59]} 2. d4 {[%clk 0:02:59]}  d5 {[%clk 0:03:00]} 3. e5 {[%clk 0:03:00]}  c5 {[%clk 0:03:00]} 4. Nf3 {[%clk 0:02:59]}  cxd4 {[%clk 0:03:00]} 5. Qxd4 {[%clk 0:02:59]}  Nc6 {[%clk 0:02:58]} 6. Qf4 {[%clk 0:02:59]}  e6 {[%clk 0:02:51]} 7. Bd3 {[%clk 0:02:58]}  Bc5 {[%clk 0:02:32]} 8. Qg3 {[%clk 0:02:52]}  g6 {[%clk 0:02:24]} 9. h4 {[%clk 0:02:51]}  h5 {[%clk 0:02:23]} 10. Bg5 {[%clk 0:02:45]}  Be7 {[%clk 0:02:21]} 11. Nc3 {[%clk 0:02:42]}  Bxg5 {[%clk 0:02:15]} 12. Nxg5 {[%clk 0:02:37]}  Nge7 {[%clk 0:02:10]} 13. O-O {[%clk 0:01:56]}  Nd4 {[%clk 0:02:03]} 14. Qf4 {[%clk 0:01:47]}  Ndf5 {[%clk 0:01:59]} 15. Rad1 {[%clk 0:01:34]}  Bd7 {[%clk 0:01:54]} 16. Rfe1 {[%clk 0:01:31]}  Rc8 {[%clk 0:01:38]} 17. Bxf5 {[%clk 0:00:45]}  gxf5 {[%clk 0:01:34]} 18. Qg3 {[%clk 0:00:37]}  Qb6 {[%clk 0:01:23]} 19. b3 {[%clk 0:00:15]}  Qb4 {[%clk 0:01:17]} 20. Ne2 {[%clk 0:00:15]}  Rxc2 {[%clk 0:01:11]} 21. Nd4 {[%clk 0:00:14]}  Rc3 {[%clk 0:01:10]} 22. Qf4 {[%clk 0:00:12]}  Ng6 {[%clk 0:01:09]} 23. Qd2 {[%clk 0:00:12]}  a5 {[%clk 0:00:54]} 24. Nxf5 {[%clk 0:00:12]}  exf5 {[%clk 0:00:52]} 25. e6 {[%clk 0:00:13]}  fxe6 {[%clk 0:00:37]} 26. Nxe6 {[%clk 0:00:12]}  Bxe6 {[%clk 0:00:34]} 27. Rxe6+ {[%clk 0:00:13]}  Ne7 {[%clk 0:00:34]} 28. Qxd5 {[%clk 0:00:09]}  Rh7 {[%clk 0:00:12]} 29. a3 {[%clk 0:00:08]}  Qc5 {[%clk 0:00:12]} 30. Qd7+ {[%clk 0:00:03]}  Kf7 {[%clk 0:00:10]} 31. Re2 {[%clk 0:00:04]}  Rh6 {[%clk 0:00:05]} 32. Rde1 {[%clk 0:00:03]}  Rc1 {[%clk 0:00:02]} 33. Rxe7+ {[%clk 0:00:04]}  Kg6 {[%clk 0:00:01]} 34. Qe6# {[%clk 0:00:04]} 1-0

[Event "December 5 Late 2023"]
[Site "https://www.chess.com"]
[Date "2023.12.05"]
[Round "4"]
[White "Bressy, Theo"]
[Black "Vazquez, Facundo"]
[Result "0-1"]
[Board "56"]
[TimeControl "180+1"]
[WhiteFideId "26022842"]
[BlackFideId "3007669"]
[WhiteElo "2524"]
[BlackElo "2715"]
[WhiteTeam "FRA"]
[BlackTeam "URU"]
[WhiteClock "0:00:00"]
[BlackClock "0:00:20"]

1. e4 {[%clk 0:03:00]}  c5 {[%clk 0:02:56]} 2. a3 {[%clk 0:03:00]}  d6 {[%clk 0:02:57]} 3. b4 {[%clk 0:03:01]}  cxb4 {[%clk 0:02:57]} 4. axb4 {[%clk 0:03:02]}  d5 {[%clk 0:02:57]} 5. exd5 {[%clk 0:03:02]}  Qxd5 {[%clk 0:02:55]} 6. Nc3 {[%clk 0:03:02]}  Qe6+ {[%clk 0:02:55]} 7. Qe2 {[%clk 0:03:02]}  Qxe2+ {[%clk 0:02:52]} 8. Bxe2 {[%clk 0:03:03]}  Nf6 {[%clk 0:02:51]} 9. Nb5 {[%clk 0:02:56]}  Kd8 {[%clk 0:02:49]} 10. Nf3 {[%clk 0:02:55]}  a6 {[%clk 0:02:48]} 11. Ng5 {[%clk 0:02:36]}  Be6 {[%clk 0:02:22]} 12. Nxe6+ {[%clk 0:02:36]}  fxe6 {[%clk 0:02:23]} 13. Bb2 {[%clk 0:02:19]}  Nc6 {[%clk 0:02:19]} 14. Nd4 {[%clk 0:02:18]}  Nxd4 {[%clk 0:02:12]} 15. Bxd4 {[%clk 0:02:19]}  Nd7 {[%clk 0:02:04]} 16. Bg4 {[%clk 0:02:08]}  e5 {[%clk 0:01:57]} 17. Bc3 {[%clk 0:02:05]}  Nf6 {[%clk 0:01:54]} 18. Be6 {[%clk 0:02:01]}  e4 {[%clk 0:01:54]} 19. O-O {[%clk 0:01:56]}  g6 {[%clk 0:01:53]} 20. Rfe1 {[%clk 0:01:39]}  Bh6 {[%clk 0:01:24]} 21. b5 {[%clk 0:01:35]}  Kc7 {[%clk 0:01:21]} 22. Be5+ {[%clk 0:01:19]}  Kb6 {[%clk 0:01:20]} 23. bxa6 {[%clk 0:01:20]}  Rxa6 {[%clk 0:01:16]} 24. Reb1+ {[%clk 0:01:18]}  Kc5 {[%clk 0:01:08]} 25. Rxa6 {[%clk 0:00:55]}  bxa6 {[%clk 0:01:09]} 26. d4+ {[%clk 0:00:55]}  exd3 {[%clk 0:01:02]} 27. cxd3 {[%clk 0:00:56]}  Rd8 {[%clk 0:01:00]} 28. d4+ {[%clk 0:00:56]}  Rxd4 {[%clk 0:00:51]} 29. Bxd4+ {[%clk 0:00:57]}  Kxd4 {[%clk 0:00:50]} 30. Ra1 {[%clk 0:00:54]}  Ke5 {[%clk 0:00:47]} 31. Bc4 {[%clk 0:00:52]}  Bd2 {[%clk 0:00:45]} 32. Bxa6 {[%clk 0:00:51]}  Bb4 {[%clk 0:00:42]} 33. Rb1 {[%clk 0:00:50]}  Bc5 {[%clk 0:00:41]} 34. Re1+ {[%clk 0:00:47]}  Kd6 {[%clk 0:00:39]} 35. h3 {[%clk 0:00:47]}  e5 {[%clk 0:00:37]} 36. Bc4 {[%clk 0:00:45]}  Bd4 {[%clk 0:00:36]} 37. g3 {[%clk 0:00:34]}  g5 {[%clk 0:00:36]} 38. Kg2 {[%clk 0:00:34]}  h5 {[%clk 0:00:36]} 39. Bf7 {[%clk 0:00:22]}  h4 {[%clk 0:00:34]} 40. g4 {[%clk 0:00:20]}  Nd7 {[%clk 0:00:33]} 41. Kf3 {[%clk 0:00:15]}  Nc5 {[%clk 0:00:31]} 42. Re2 {[%clk 0:00:13]}  Nd3 {[%clk 0:00:30]} 43. Bg6 {[%clk 0:00:04]}  Nf4 {[%clk 0:00:28]} 44. Ke4 {[%clk 0:00:01]}  Nxe2 {[%clk 0:00:27]} 45. Kf5 {[%clk 0:00:01]}  Nf4 {[%clk 0:00:25]} 46. Kxg5 {[%clk 0:00:02]}  Nxg6 {[%clk 0:00:24]} 47. Kxg6 {[%clk 0:00:03]}  Bxf2 {[%clk 0:00:23]} 48. Kf5 {[%clk 0:00:02]}  Kd5 {[%clk 0:00:20]} 49. g5 {[%clk 0:00:03]}  Bc5 {[%clk 0:00:20]} 50. g6 {[%clk 0:00:00]}  Bf8 {[%clk 0:00:20]} 0-1

[Event "December 5 Late 2023"]
[Site "https://www.chess.com"]
[Date "2023.12.05"]
[Round "4"]
[White "Djokic, Mihailo"]
[Black "Krzywda, Andrzej"]
[Result "1/2-1/2"]
[Board "57"]
[TimeControl "180+1"]
[WhiteFideId "976440"]
[BlackFideId "1114565"]
[WhiteElo "2714"]
[BlackElo "2523"]
[WhiteTeam "SRB"]
[BlackTeam "POL"]
[WhiteClock "0:00:58"]
[BlackClock "0:00:05"]

1. e4 {[%clk 0:03:00]}  e5 {[%clk 0:02:59]} 2. Nf3 {[%clk 0:03:01]}  Nf6 {[%clk 0:03:00]} 3. Nc3 {[%clk 0:03:02]}  Bb4 {[%clk 0:02:59]} 4. Nxe5 {[%clk 0:03:00]}  O-O {[%clk 0:03:00]} 5. Nd3 {[%clk 0:02:59]}  Bxc3 {[%clk 0:03:00]} 6. dxc3 {[%clk 0:03:00]}  Nxe4 {[%clk 0:03:01]} 7. Be2 {[%clk 0:03:00]}  Re8 {[%clk 0:03:01]} 8. O-O {[%clk 0:03:01]}  d6 {[%clk 0:03:02]} 9. Re1 {[%clk 0:03:01]}  Nd7 {[%clk 0:03:02]} 10. Be3 {[%clk 0:03:01]}  b6 {[%clk 0:03:01]} 11. Bf3 {[%clk 0:03:00]}  Bb7 {[%clk 0:03:00]} 12. Nf4 {[%clk 0:03:00]}  Ndf6 {[%clk 0:02:55]} 13. Bd4 {[%clk 0:03:00]}  Rb8 {[%clk 0:02:28]} 14. Qd3 {[%clk 0:02:58]}  c5 {[%clk 0:02:08]} 15. Bxf6 {[%clk 0:02:54]}  Nxf6 {[%clk 0:01:51]} 16. Rxe8+ {[%clk 0:02:53]}  Qxe8 {[%clk 0:01:29]} 17. Bxb7 {[%clk 0:02:51]}  Rxb7 {[%clk 0:01:30]} 18. Qxd6 {[%clk 0:02:50]}  Rd7 {[%clk 0:01:25]} 19. Qc6 {[%clk 0:02:45]}  Rd1+ {[%clk 0:01:25]} 20. Rxd1 {[%clk 0:02:45]}  Qxc6 {[%clk 0:01:25]} 21. c4 {[%clk 0:02:40]}  g6 {[%clk 0:01:22]} 22. f3 {[%clk 0:02:35]}  Qa4 {[%clk 0:01:19]} 23. b3 {[%clk 0:02:33]}  Qxa2 {[%clk 0:01:18]} 24. Rd2 {[%clk 0:02:33]}  Qa1+ {[%clk 0:01:16]} 25. Kf2 {[%clk 0:02:33]}  Qc3 {[%clk 0:01:15]} 26. Ke1 {[%clk 0:02:10]}  Qe5+ {[%clk 0:00:54]} 27. Ne2 {[%clk 0:02:10]}  Qxh2 {[%clk 0:00:55]} 28. Kf2 {[%clk 0:02:10]}  Qe5 {[%clk 0:00:52]} 29. Rd3 {[%clk 0:02:06]}  h5 {[%clk 0:00:50]} 30. Re3 {[%clk 0:02:05]}  Qb2 {[%clk 0:00:50]} 31. Rc3 {[%clk 0:02:01]}  h4 {[%clk 0:00:48]} 32. Ke3 {[%clk 0:02:01]}  Nh5 {[%clk 0:00:46]} 33. Kd2 {[%clk 0:02:00]}  Qa1 {[%clk 0:00:43]} 34. Nc1 {[%clk 0:01:59]}  Nf4 {[%clk 0:00:42]} 35. Re3 {[%clk 0:01:45]}  Qd4+ {[%clk 0:00:41]} 36. Nd3 {[%clk 0:01:46]}  Nxd3 {[%clk 0:00:36]} 37. Re8+ {[%clk 0:01:45]}  Kg7 {[%clk 0:00:36]} 38. cxd3 {[%clk 0:01:46]}  Qf2+ {[%clk 0:00:35]} 39. Re2 {[%clk 0:01:47]}  Qg3 {[%clk 0:00:34]} 40. Kc3 {[%clk 0:01:46]}  h3 {[%clk 0:00:33]} 41. gxh3 {[%clk 0:01:47]}  Qxf3 {[%clk 0:00:33]} 42. Rd2 {[%clk 0:01:45]}  Qf6+ {[%clk 0:00:33]} 43. d4 {[%clk 0:01:44]}  cxd4+ {[%clk 0:00:32]} 44. Rxd4 {[%clk 0:01:45]}  g5 {[%clk 0:00:32]} 45. b4 {[%clk 0:01:45]}  Kg6 {[%clk 0:00:28]} 46. c5 {[%clk 0:01:45]}  bxc5 {[%clk 0:00:28]} 47. bxc5 {[%clk 0:01:46]}  Qf3+ {[%clk 0:00:25]} 48. Kc4 {[%clk 0:01:46]}  Qxh3 {[%clk 0:00:24]} 49. Rd6+ {[%clk 0:01:45]}  Kg7 {[%clk 0:00:24]} 50. c6 {[%clk 0:01:46]}  Qg4+ {[%clk 0:00:22]} 51. Rd4 {[%clk 0:01:44]}  Qe6+ {[%clk 0:00:21]} 52. Kc5 {[%clk 0:01:45]}  Qe5+ {[%clk 0:00:21]} 53. Rd5 {[%clk 0:01:45]}  Qc7 {[%clk 0:00:21]} 54. Rd7 {[%clk 0:01:45]}  Qb6+ {[%clk 0:00:21]} 55. Kd6 {[%clk 0:01:45]}  Qb4+ {[%clk 0:00:19]} 56. Kd5 {[%clk 0:01:43]}  g4 {[%clk 0:00:19]} 57. c7 {[%clk 0:01:42]}  Qd2+ {[%clk 0:00:19]} 58. Kc6 {[%clk 0:01:43]}  Qc3+ {[%clk 0:00:19]} 59. Kb7 {[%clk 0:01:43]}  Qb4+ {[%clk 0:00:19]} 60. Ka8 {[%clk 0:01:42]}  Qe4+ {[%clk 0:00:19]} 61. Kb8 {[%clk 0:01:42]}  Qb4+ {[%clk 0:00:19]} 62. Ka8 {[%clk 0:01:40]}  Qc5 {[%clk 0:00:16]} 63. Kb8 {[%clk 0:01:33]}  Qb6+ {[%clk 0:00:16]} 64. Kc8 {[%clk 0:01:33]}  g3 {[%clk 0:00:14]} 65. Rd2 {[%clk 0:01:32]}  Qe6+ {[%clk 0:00:09]} 66. Kb7 {[%clk 0:01:31]}  Qb6+ {[%clk 0:00:09]} 67. Kc8 {[%clk 0:01:30]}  f5 {[%clk 0:00:08]} 68. Kd7 {[%clk 0:01:27]}  Qb5+ {[%clk 0:00:08]} 69. Kd8 {[%clk 0:01:26]}  Qb6 {[%clk 0:00:07]} 70. Kd7 {[%clk 0:01:18]}  Qe3 {[%clk 0:00:06]} 71. Rd6 {[%clk 0:01:14]}  Qc5 {[%clk 0:00:01]} 72. Rc6 {[%clk 0:01:14]}  Qd5+ {[%clk 0:00:01]} 73. Rd6 {[%clk 0:01:14]}  Qc5 {[%clk 0:00:01]} 74. Rc6 {[%clk 0:01:14]}  Qd5+ {[%clk 0:00:02]} 75. Rd6 {[%clk 0:01:14]}  Qb5+ {[%clk 0:00:03]} 76. Kd8 {[%clk 0:01:14]}  Qe5 {[%clk 0:00:01]} 77. Rd7+ {[%clk 0:01:13]}  Kg6 {[%clk 0:00:02]} 78. c8=Q {[%clk 0:01:14]}  g2 {[%clk 0:00:02]} 79. Qc6+ {[%clk 0:01:13]}  Qf6+ {[%clk 0:00:01]} 80. Qxf6+ {[%clk 0:01:06]}  Kxf6 {[%clk 0:00:02]} 81. Rd6+ {[%clk 0:00:59]}  Ke5 {[%clk 0:00:02]} 82. Rg6 {[%clk 0:00:59]}  f4 {[%clk 0:00:02]} 83. Rxg2 {[%clk 0:00:59]}  Ke4 {[%clk 0:00:02]} 84. Kc7 {[%clk 0:00:57]}  f3 {[%clk 0:00:02]} 85. Rg4+ {[%clk 0:00:56]}  Ke3 {[%clk 0:00:02]} 86. Ra4 {[%clk 0:00:56]}  f2 {[%clk 0:00:01]} 87. Ra3+ {[%clk 0:00:55]}  Ke2 {[%clk 0:00:02]} 88. Ra2+ {[%clk 0:00:56]}  Ke1 {[%clk 0:00:02]} 89. Ra1+ {[%clk 0:00:55]}  Ke2 {[%clk 0:00:02]} 90. Ra2+ {[%clk 0:00:55]}  Ke3 {[%clk 0:00:02]} 91. Ra1 {[%clk 0:00:55]}  a5 {[%clk 0:00:03]} 92. Kb6 {[%clk 0:00:54]}  a4 {[%clk 0:00:03]} 93. Kb5 {[%clk 0:00:54]}  a3 {[%clk 0:00:03]} 94. Kb4 {[%clk 0:00:55]}  a2 {[%clk 0:00:04]} 95. Kb3 {[%clk 0:00:55]}  Ke2 {[%clk 0:00:04]} 96. Rxa2+ {[%clk 0:00:55]}  Ke1 {[%clk 0:00:04]} 97. Ra1+ {[%clk 0:00:56]}  Ke2 {[%clk 0:00:04]} 98. Ra2+ {[%clk 0:00:56]}  Ke1 {[%clk 0:00:05]} 99. Ra8 {[%clk 0:00:56]}  f1=Q {[%clk 0:00:04]} 100. Ra1+ {[%clk 0:00:57]}  Ke2 {[%clk 0:00:05]} 101. Rxf1 {[%clk 0:00:58]}  Kxf1 {[%clk 0:00:05]} 1/2-1/2

[Event "December 5 Late 2023"]
[Site "https://www.chess.com"]
[Date "2023.12.05"]
[Round "4"]
[White "Rogov, Matfey"]
[Black "Bolourchifard, Farzad"]
[Result "0-1"]
[Board "59"]
[TimeControl "180+1"]
[WhiteFideId "44191308"]
[BlackFideId "12510084"]
[WhiteElo "2521"]
[BlackElo "2711"]
[WhiteTeam "RUS"]
[BlackTeam "IRI"]
[WhiteClock "0:00:00"]
[BlackClock "0:00:18"]

1. e4 {[%clk 0:03:00]}  e5 {[%clk 0:02:59]} 2. Nf3 {[%clk 0:03:00]}  Nc6 {[%clk 0:02:59]} 3. Bb5 {[%clk 0:03:01]}  a6 {[%clk 0:02:59]} 4. Ba4 {[%clk 0:03:01]}  Nf6 {[%clk 0:03:00]} 5. Qe2 {[%clk 0:03:02]}  d6 {[%clk 0:03:00]} 6. d4 {[%clk 0:02:58]}  Bd7 {[%clk 0:03:00]} 7. c3 {[%clk 0:02:46]}  b5 {[%clk 0:02:44]} 8. Bb3 {[%clk 0:02:39]}  h6 {[%clk 0:02:40]} 9. a4 {[%clk 0:02:33]}  Rb8 {[%clk 0:02:39]} 10. axb5 {[%clk 0:02:27]}  axb5 {[%clk 0:02:39]} 11. O-O {[%clk 0:02:13]}  g6 {[%clk 0:02:39]} 12. Rd1 {[%clk 0:02:06]}  Bg7 {[%clk 0:02:38]} 13. dxe5 {[%clk 0:01:57]}  dxe5 {[%clk 0:02:31]} 14. Be3 {[%clk 0:01:55]}  O-O {[%clk 0:02:29]} 15. Bc5 {[%clk 0:01:41]}  Re8 {[%clk 0:02:28]} 16. Na3 {[%clk 0:01:40]}  Na5 {[%clk 0:01:44]} 17. Ba2 {[%clk 0:01:29]}  Qc8 {[%clk 0:01:43]} 18. b4 {[%clk 0:01:21]}  Nb7 {[%clk 0:01:42]} 19. Ba7 {[%clk 0:00:24]}  Ra8 {[%clk 0:01:41]} 20. Nxb5 {[%clk 0:00:17]}  Bxb5 {[%clk 0:01:31]} 21. Qxb5 {[%clk 0:00:18]}  Nd6 {[%clk 0:01:10]} 22. Qc6 {[%clk 0:00:07]}  Ndxe4 {[%clk 0:00:41]} 23. Be3 {[%clk 0:00:06]}  Nd6 {[%clk 0:00:20]} 24. h3 {[%clk 0:00:00]}  Kh7 {[%clk 0:00:18]} 0-1

[Event "December 5 Late 2023"]
[Site "https://www.chess.com"]
[Date "2023.12.05"]
[Round "4"]
[White "Pasti, Aron"]
[Black "Zeltsan, Joseph"]
[Result "0-1"]
[Board "61"]
[TimeControl "180+1"]
[WhiteFideId "785857"]
[BlackFideId "30932980"]
[WhiteElo "2515"]
[BlackElo "2708"]
[WhiteTeam "HUN"]
[BlackTeam "USA"]
[WhiteClock "0:00:00"]
[BlackClock "0:00:13"]

1. e4 {[%clk 0:02:56]}  e5 {[%clk 0:02:58]} 2. Nf3 {[%clk 0:02:56]}  Nc6 {[%clk 0:02:58]} 3. Bb5 {[%clk 0:02:56]}  Nf6 {[%clk 0:02:59]} 4. d3 {[%clk 0:02:55]}  Bc5 {[%clk 0:02:58]} 5. c3 {[%clk 0:02:55]}  O-O {[%clk 0:02:58]} 6. O-O {[%clk 0:02:55]}  Re8 {[%clk 0:02:57]} 7. Bg5 {[%clk 0:02:52]}  h6 {[%clk 0:02:56]} 8. Bh4 {[%clk 0:02:52]}  g5 {[%clk 0:02:55]} 9. Bg3 {[%clk 0:02:51]}  d6 {[%clk 0:02:49]} 10. d4 {[%clk 0:02:51]}  exd4 {[%clk 0:02:36]} 11. cxd4 {[%clk 0:02:52]}  Bb4 {[%clk 0:02:23]} 12. a3 {[%clk 0:02:51]}  Ba5 {[%clk 0:02:23]} 13. b4 {[%clk 0:02:51]}  Bb6 {[%clk 0:02:23]} 14. d5 {[%clk 0:02:40]}  Ne7 {[%clk 0:01:19]} 15. Bxe8 {[%clk 0:02:38]}  Qxe8 {[%clk 0:01:20]} 16. Nbd2 {[%clk 0:02:32]}  Ng6 {[%clk 0:01:15]} 17. Re1 {[%clk 0:02:30]}  Bg4 {[%clk 0:00:48]} 18. Qc2 {[%clk 0:02:15]}  Qd7 {[%clk 0:00:46]} 19. Rad1 {[%clk 0:02:07]}  Re8 {[%clk 0:00:45]} 20. Qd3 {[%clk 0:01:30]}  h5 {[%clk 0:00:39]} 21. h3 {[%clk 0:01:25]}  h4 {[%clk 0:00:35]} 22. Bh2 {[%clk 0:01:04]}  Bh5 {[%clk 0:00:28]} 23. Nc4 {[%clk 0:01:02]}  g4 {[%clk 0:00:26]} 24. Nxb6 {[%clk 0:00:54]}  axb6 {[%clk 0:00:25]} 25. hxg4 {[%clk 0:00:55]}  Qxg4 {[%clk 0:00:25]} 26. Rc1 {[%clk 0:00:16]}  h3 {[%clk 0:00:19]} 27. Bg3 {[%clk 0:00:16]}  hxg2 {[%clk 0:00:18]} 28. Nh2 {[%clk 0:00:16]}  Qh3 {[%clk 0:00:16]} 29. Rxc7 {[%clk 0:00:15]}  Ng4 {[%clk 0:00:17]} 30. Qf3 {[%clk 0:00:11]}  Nh4 {[%clk 0:00:14]} 31. Qf4 {[%clk 0:00:06]}  Nxh2 {[%clk 0:00:14]} 32. Qg5+ {[%clk 0:00:00]}  Bg6 {[%clk 0:00:13]} 0-1

[Event "December 5 Late 2023"]
[Site "https://www.chess.com"]
[Date "2023.12.05"]
[Round "4"]
[White "Wafa, Hamed"]
[Black "Dobre, Claudiu-Cristian"]
[Result "1-0"]
[Board "62"]
[TimeControl "180+1"]
[WhiteFideId "10628452"]
[BlackFideId "1211854"]
[WhiteElo "2705"]
[BlackElo "2500"]
[WhiteTeam "EGY"]
[BlackTeam "ROU"]
[WhiteClock "0:01:31"]
[BlackClock "0:00:00"]

1. e4 {[%clk 0:03:00]}  Nc6 {[%clk 0:03:00]} 2. d4 {[%clk 0:02:58]}  d5 {[%clk 0:03:00]} 3. exd5 {[%clk 0:02:56]}  Qxd5 {[%clk 0:02:59]} 4. Nf3 {[%clk 0:02:57]}  e5 {[%clk 0:02:58]} 5. c4 {[%clk 0:02:41]}  Qe4+ {[%clk 0:02:51]} 6. Be2 {[%clk 0:02:42]}  Nxd4 {[%clk 0:02:03]} 7. Nxd4 {[%clk 0:02:36]}  Qxd4 {[%clk 0:02:03]} 8. Qc2 {[%clk 0:02:34]}  Bb4+ {[%clk 0:01:56]} 9. Nc3 {[%clk 0:02:33]}  Ne7 {[%clk 0:01:55]} 10. O-O {[%clk 0:02:31]}  O-O {[%clk 0:01:08]} 11. Nb5 {[%clk 0:02:28]}  Qb6 {[%clk 0:01:04]} 12. a3 {[%clk 0:02:25]}  Bc5 {[%clk 0:00:37]} 13. b4 {[%clk 0:02:25]}  Bd4 {[%clk 0:00:37]} 14. c5 {[%clk 0:02:22]}  Qc6 {[%clk 0:00:37]} 15. Nxd4 {[%clk 0:02:21]}  exd4 {[%clk 0:00:36]} 16. Bf3 {[%clk 0:02:19]}  Qg6 {[%clk 0:00:36]} 17. Qd1 {[%clk 0:02:06]}  Nc6 {[%clk 0:00:28]} 18. Bxc6 {[%clk 0:02:02]}  Qxc6 {[%clk 0:00:27]} 19. Qxd4 {[%clk 0:02:03]}  Bf5 {[%clk 0:00:20]} 20. Bb2 {[%clk 0:01:56]}  Qg6 {[%clk 0:00:20]} 21. Rad1 {[%clk 0:01:56]}  h5 {[%clk 0:00:19]} 22. Qf4 {[%clk 0:01:53]}  c6 {[%clk 0:00:14]} 23. Rd6 {[%clk 0:01:51]}  Qg4 {[%clk 0:00:13]} 24. Qxg4 {[%clk 0:01:49]}  Bxg4 {[%clk 0:00:14]} 25. f3 {[%clk 0:01:49]}  Be6 {[%clk 0:00:13]} 26. f4 {[%clk 0:01:46]}  Rfe8 {[%clk 0:00:12]} 27. Re1 {[%clk 0:01:43]}  Bf5 {[%clk 0:00:07]} 28. Re5 {[%clk 0:01:41]}  Rxe5 {[%clk 0:00:07]} 29. fxe5 {[%clk 0:01:41]}  Re8 {[%clk 0:00:07]} 30. Kf2 {[%clk 0:01:40]}  Kf8 {[%clk 0:00:07]} 31. Ke3 {[%clk 0:01:39]}  Ke7 {[%clk 0:00:07]} 32. Kf4 {[%clk 0:01:39]}  g6 {[%clk 0:00:06]} 33. Bd4 {[%clk 0:01:38]}  Rd8 {[%clk 0:00:05]} 34. h3 {[%clk 0:01:32]}  Be6 {[%clk 0:00:05]} 35. Bf2 {[%clk 0:01:31]}  Rd7 {[%clk 0:00:02]} 36. Bh4+ {[%clk 0:01:30]}  Ke8 {[%clk 0:00:00]} 37. Kg5 {[%clk 0:01:31]} 1-0

[Event "December 5 Late 2023"]
[Site "https://www.chess.com"]
[Date "2023.12.05"]
[Round "4"]
[White "Keleberda, Tymur"]
[Black "Panesar Vedant"]
[Result "1/2-1/2"]
[Board "63"]
[TimeControl "180+1"]
[WhiteFideId "14174294"]
[BlackFideId "35033018"]
[WhiteElo "2493"]
[BlackElo "2705"]
[WhiteTeam "CAN"]
[BlackTeam "IND"]
[WhiteClock "0:00:04"]
[BlackClock "0:00:08"]

1. e4 {[%clk 0:03:00]}  e5 {[%clk 0:02:59]} 2. Nf3 {[%clk 0:02:59]}  Nc6 {[%clk 0:02:58]} 3. Bc4 {[%clk 0:02:59]}  Bc5 {[%clk 0:02:57]} 4. c3 {[%clk 0:02:59]}  Nf6 {[%clk 0:02:57]} 5. d4 {[%clk 0:02:59]}  exd4 {[%clk 0:02:56]} 6. e5 {[%clk 0:03:00]}  d5 {[%clk 0:02:57]} 7. Bb5 {[%clk 0:03:00]}  Ne4 {[%clk 0:02:57]} 8. cxd4 {[%clk 0:03:01]}  Bb6 {[%clk 0:02:58]} 9. Nc3 {[%clk 0:03:01]}  Bg4 {[%clk 0:02:57]} 10. Be3 {[%clk 0:03:01]}  O-O {[%clk 0:02:58]} 11. h3 {[%clk 0:03:01]}  Bh5 {[%clk 0:02:58]} 12. Qc2 {[%clk 0:03:02]}  Ba5 {[%clk 0:02:40]} 13. O-O {[%clk 0:02:41]}  Bxf3 {[%clk 0:02:38]} 14. gxf3 {[%clk 0:02:40]}  Ng5 {[%clk 0:02:36]} 15. Qf5 {[%clk 0:02:32]}  Bxc3 {[%clk 0:02:20]} 16. bxc3 {[%clk 0:02:08]}  Ne6 {[%clk 0:02:20]} 17. Bd3 {[%clk 0:02:03]}  g6 {[%clk 0:02:18]} 18. Qg4 {[%clk 0:02:03]}  f5 {[%clk 0:02:15]} 19. exf6 {[%clk 0:02:00]}  Qxf6 {[%clk 0:02:15]} 20. c4 {[%clk 0:01:49]}  Nexd4 {[%clk 0:02:07]} 21. f4 {[%clk 0:01:28]}  dxc4 {[%clk 0:01:38]} 22. Bxc4+ {[%clk 0:01:28]}  Kg7 {[%clk 0:01:37]} 23. Qd7+ {[%clk 0:01:06]}  Kh8 {[%clk 0:01:28]} 24. Qxc7 {[%clk 0:01:06]}  Qf5 {[%clk 0:01:17]} 25. Rad1 {[%clk 0:00:41]}  Rad8 {[%clk 0:00:41]} 26. Kh2 {[%clk 0:00:40]}  Rd7 {[%clk 0:00:35]} 27. Bxd4+ {[%clk 0:00:41]}  Nxd4 {[%clk 0:00:28]} 28. Qe5+ {[%clk 0:00:33]}  Qxe5 {[%clk 0:00:27]} 29. fxe5 {[%clk 0:00:34]}  Nf3+ {[%clk 0:00:27]} 30. Kg3 {[%clk 0:00:33]}  Nxe5 {[%clk 0:00:27]} 31. Rxd7 {[%clk 0:00:32]}  Nxd7 {[%clk 0:00:27]} 32. Bd5 {[%clk 0:00:28]}  b6 {[%clk 0:00:27]} 33. Re1 {[%clk 0:00:28]}  Nf6 {[%clk 0:00:26]} 34. Bf3 {[%clk 0:00:27]}  Re8 {[%clk 0:00:26]} 35. Rc1 {[%clk 0:00:26]}  Re7 {[%clk 0:00:26]} 36. Rc8+ {[%clk 0:00:21]}  Kg7 {[%clk 0:00:26]} 37. a4 {[%clk 0:00:19]}  Ne8 {[%clk 0:00:21]} 38. a5 {[%clk 0:00:17]}  bxa5 {[%clk 0:00:21]} 39. Rc5 {[%clk 0:00:17]}  a4 {[%clk 0:00:20]} 40. Ra5 {[%clk 0:00:17]}  Nd6 {[%clk 0:00:20]} 41. Rxa4 {[%clk 0:00:17]}  Nf5+ {[%clk 0:00:20]} 42. Kg2 {[%clk 0:00:18]}  Kf6 {[%clk 0:00:18]} 43. h4 {[%clk 0:00:15]}  h5 {[%clk 0:00:15]} 44. Ra6+ {[%clk 0:00:15]}  Kg7 {[%clk 0:00:15]} 45. Ra4 {[%clk 0:00:15]}  Rc7 {[%clk 0:00:13]} 46. Be4 {[%clk 0:00:10]}  Nxh4+ {[%clk 0:00:13]} 47. Kg3 {[%clk 0:00:10]}  Nf5+ {[%clk 0:00:14]} 48. Bxf5 {[%clk 0:00:10]}  gxf5 {[%clk 0:00:14]} 49. Kf4 {[%clk 0:00:11]}  Rf7 {[%clk 0:00:05]} 50. Kg5 {[%clk 0:00:09]}  Kf8 {[%clk 0:00:05]} 51. f4 {[%clk 0:00:07]}  Ke7 {[%clk 0:00:04]} 52. Kxh5 {[%clk 0:00:07]}  Ke6 {[%clk 0:00:04]} 53. Kg6 {[%clk 0:00:06]}  Rf6+ {[%clk 0:00:03]} 54. Kg5 {[%clk 0:00:06]}  Rf7 {[%clk 0:00:04]} 55. Ra6+ {[%clk 0:00:06]}  Kd5 {[%clk 0:00:04]} 56. Kg6 {[%clk 0:00:06]}  Rf8 {[%clk 0:00:04]} 57. Ra4 {[%clk 0:00:05]}  Ra8 {[%clk 0:00:03]} 58. Kxf5 {[%clk 0:00:05]}  a5 {[%clk 0:00:04]} 59. Kf6 {[%clk 0:00:05]}  Kc5 {[%clk 0:00:03]} 60. f5 {[%clk 0:00:04]}  Kb5 {[%clk 0:00:04]} 61. Ra2 {[%clk 0:00:04]}  a4 {[%clk 0:00:04]} 62. Ke7 {[%clk 0:00:03]}  Ra7+ {[%clk 0:00:04]} 63. Ke6 {[%clk 0:00:04]}  Ra6+ {[%clk 0:00:04]} 64. Ke7 {[%clk 0:00:04]}  Kb4 {[%clk 0:00:05]} 65. f6 {[%clk 0:00:04]}  Ra7+ {[%clk 0:00:05]} 66. Ke6 {[%clk 0:00:05]}  Ra6+ {[%clk 0:00:06]} 67. Ke7 {[%clk 0:00:05]}  Ra7+ {[%clk 0:00:06]} 68. Ke6 {[%clk 0:00:05]}  Kb3 {[%clk 0:00:06]} 69. Ra1 {[%clk 0:00:05]}  Ra6+ {[%clk 0:00:05]} 70. Ke7 {[%clk 0:00:05]}  Ra7+ {[%clk 0:00:06]} 71. Ke6 {[%clk 0:00:05]}  a3 {[%clk 0:00:06]} 72. f7 {[%clk 0:00:06]}  Ra6+ {[%clk 0:00:07]} 73. Ke7 {[%clk 0:00:01]}  Ra7+ {[%clk 0:00:07]} 74. Ke6 {[%clk 0:00:02]}  Ra8 {[%clk 0:00:06]} 75. Rxa3+ {[%clk 0:00:01]}  Kxa3 {[%clk 0:00:06]} 76. Ke7 {[%clk 0:00:01]}  Ra7+ {[%clk 0:00:07]} 77. Ke8 {[%clk 0:00:02]}  Kb3 {[%clk 0:00:07]} 78. f8=Q {[%clk 0:00:02]}  Ra8+ {[%clk 0:00:07]} 79. Ke7 {[%clk 0:00:03]}  Rxf8 {[%clk 0:00:08]} 80. Kxf8 {[%clk 0:00:04]} 1/2-1/2